Workbook

Sheet Instructions
A6: Instructions
A8: 1.) Find a quiet place and allow yourself the full four hour exam period to practice. Treat this just as you would the real exam.
A10: 2.) Use the Navigator worksheet to see a brief description of each question, its point value and navigate between questions in your preferred order.
A12: 3.) Answer each question either to the side or below the grey question area.
A14: 4.) Use cell B1 on each question worksheet to mark whether you finished the question or not. You should use this feature to
A15: reflect your confidence in your answer. This way you'll know if you're on the money or your guesses were lucky.
A17: 5.) Grade each question harshly. It's better to put in extra reviewing time now than find the examiners aren't as generous as you hoped.
A18: Use increments of 0.25 when scoring; pay attention to the language used in the question and the point value. An "identify" question
A19: is likely 0.25 per item while an "explain" or "briefly justify" gets 0.25 for the item and another 0.25 for the justification.
A21: 6.) Enter your estimated score for each sub-part of a question in the box beneath the sub-part point value. They look like:
A23: 7.) Use the Point Grid to see your score and a breakdown of where you scored well and where you didn't.
A25: 8.) Find the top five questions where you lost the most points. These are the topics you need to review the most intensely in the
A26: next day or so.
A28: 9.) On the BattleActs site → Custom Battles → BattleCards - Prior Exams → Select this exam and mark the cards you got right and wrong.
A29: This allows your Battle Readiness Quotient (BRQ) to track your strengths and weaknesses.
A31: 10.) Use the Reset Exam button on the Point Grid worksheet to clear all of your work ready for a new attempt at this exam later.
A32: slay the beast

Sheet Formula Sheet (hidden)
A6: FORMULA SHEET
A8: • For the negative binomial distribution (for use on question 3):
B10: ○
B13: ○
A16: • For the shifted Pareto distribution (for use on questions 7, 13 & 15):
B18: ○
B21: ○
B24: ○
B27: ○

Sheet Point Grid
A5: 2018 Exam 8
B6: Total Point Value | C6: Sub-Part of Question | L6: Your Score | M6: Sub-Part of Question
A7: Question | C7: (a) | D7: (b) | E7: (c) | F7: (d) | G7: (e) | H7: (f) | I7: (g) | J7: Status | L7: Question | M7: (a) | N7: (b) | O7: (c) | P7: (d) | Q7: (e) | R7: (f) | S7: (g)
A8: 1 | B8: =SUM(C8:I8) -> 9 | C8: 1.5 | D8: 1.5 | E8: 2.25 | F8: 1.5 | G8: 1 | H8: 0.5 | I8: 0.75 | J8: =INDIRECT("'"&A8&"'!B1") -> Finished | L8: =A8 -> 1 | M8: =_xlfn.IFNA(IF(ISBLANK(INDEX(INDIRECT("'"&$L8&"'!$A:$A"),MATCH(M$7,INDIRECT("'"&$L8&"'!$A:$A"),0)+2)),"",INDEX(INDIRECT("'"&$L8&"'!$A:$A"),MATCH(M$7,INDIRECT("'"&$L8&"'!$A:$A"),0)+2)),"") -> 1.5 | N8: 1.5 | O8: 2.25 | P8: 1.5 | Q8: 1 | R8: 0.5 | S8: 0.75
A9: 2 | B9: =SUM(C9:I9) -> 9.5 | C9: 1 | D9: 1 | E9: 1.75 | F9: 1 | G9: 1 | H9: 1.25 | I9: 2.5 | J9: =INDIRECT("'"&A9&"'!B1") -> Finished | L9: =A9 -> 2 | M9: 1 | N9: 1 | O9: 1.75 | P9: 1 | Q9: 1 | R9: 1.25 | S9: 2.5
A10: 3 | B10: 2.75 | C10: 1.5 | D10: 0.75 | E10: 0.5 | J10: Finished | L10: 3 | M10: 1.5 | N10: 0.75 | O10: 0.5
A11: 4 | B11: 0.75 | C11: 0.75 | J11: Finished | L11: 4 | M11: 0.75
A12: 5 | B12: 1.5 | C12: 1 | D12: 0.5 | J12: Finished | L12: 5 | M12: 1 | N12: 0.5
A13: 6 | B13: 2.5 | C13: 2 | D13: 0.5 | J13: Finished | L13: 6 | M13: 2 | N13: 0.5
A14: 7 | B14: 2.5 | C14: 0.5 | D14: 0.75 | E14: 0.5 | F14: 0.25 | G14: 0.5 | J14: Finished | L14: 7 | M14: 0.5 | N14: 0.75 | O14: 0.5 | P14: 0.25 | Q14: 0.5
A15: 8 | B15: 1.5 | C15: 1.5 | J15: Finished | L15: 8 | M15: 1.5
A16: 9 | B16: 4.25 | C16: 2.75 | D16: 1.5 | J16: Finished | L16: 9 | M16: 2.75 | N16: 1.5
A17: 10 | B17: 2.25 | C17: 1.25 | D17: 1 | J17: Finished | L17: 10 | M17: 1.25 | N17: 1
A18: 11 | B18: 1.25 | C18: 0.5 | D18: 0.75 | J18: Finished | L18: 11 | M18: =_xlfn.IFNA(IF(ISBLANK(INDEX(INDIRECT("'"&$L18&"'!$A:$A"),MATCH(M$7,INDIRECT("'"&$L18&"'!$A:$A"),0)+2)),"",INDEX(INDIRECT("'"&$L18&"'!$A:$A"),MATCH(M$7,INDIRECT("'"&$L18&"'!$A:$A"),0)+2)),"") -> 0.5 | N18: 0.75
A19: 12 | B19: 3 | C19: 1.5 | D19: 0.5 | E19: 1 | J19: Finished | L19: 12 | M19: 1.5 | N19: 0.5 | O19: 1
A20: 13 | B20: 2.75 | C20: 0.75 | D20: 2 | J20: Finished | L20: 13 | M20: 0.75 | N20: 2
A21: 14 | B21: 3 | C21: 1.25 | D21: 1.25 | E21: 0.5 | J21: Finished | L21: 14 | M21: 1.25 | N21: 1.25 | O21: 0.5
A22: 15 | B22: 1.75 | C22: 1.75 | J22: Finished | L22: 15 | M22: 1.75
A23: 16 | B23: 1.75 | C23: 1 | D23: 0.75 | J23: Finished | L23: 16 | M23: 1 | N23: 0.75
A24: 17 | B24: 2 | C24: 0.5 | D24: 0.5 | E24: 1 | J24: Finished | L24: 17 | M24: 0.5 | N24: 0.5 | O24: 1
A26: Total | B26: =SUM(B8:B24) -> 52 | L26: TOTAL | M26: =IF(SUM(IF(M8:S24="",0,1))=0,"",SUM(M8:S24)) -> 52 | O26: Percentage: | P26: =IF(M26="","",M26/B26) -> 1
L28: Passing Score: | M28: 33.75

Sheet Navigator
A6: Navigator – Select a question to go to it
A8: Question # | H8: Status
A9: Q1 -- Mahler -- Chi-squared Test (IQ) -- 9.00 points | H9: ='Point Grid'!J8 -> Finished
A10: Q2 -- Bahnemann -- Deductibles (IQ) -- 9.50 points | H10: ='Point Grid'!J9 -> Finished
A11: Q3 -- Bailey & Simon -- Calculate Number of Claims -- 2.75 points | H11: ='Point Grid'!J10 -> Finished
A12: Q4 -- ASOP 12 -- Risk Classification -- 0.75 points | H12: ='Point Grid'!J11 -> Finished
A13: Q5 -- Goldburd (GLM) -- Residual Plots -- 1.50 points | H13: ='Point Grid'!J12 -> Finished
A14: Q6 -- Goldburd (GLM) -- Nested Models --2.50 points | H14: ='Point Grid'!J13 -> Finished
A15: Q7 -- Goldburd (GLM) -- Logistic Regression -- 2.50 points | H15: ='Point Grid'!J14 -> Finished
A16: Q8 -- Bahnemann -- Risk Adjusted ILFs -- 1.50 points | H16: ='Point Grid'!J15 -> Finished
A17: Q9 -- Fisher -- Efficiency Test -- 4.25 points | H17: ='Point Grid'!J16 -> Finished
A18: Q10 -- Fisher -- Experience Modification -- 2.25 points | H18: ='Point Grid'!J17 -> Finished
A19: Q11 -- ISO CGL -- Experience & Schedule Rating -- 1.25 points | H19: ='Point Grid'!J18 -> Finished
A20: Q12 -- Fisher -- LDD & Retrospective Rating Plans -- 3.00 points | H20: ='Point Grid'!J19 -> Finished
A21: Q13 -- Bahnemann -- Claim Count Inflation -- 2.75 points | H21: ='Point Grid'!J20 -> Finished
A22: Q14 -- Fisher -- Insurance Charges -- 3.00 points | H22: ='Point Grid'!J21 -> Finished
A23: Q15 -- Clark -- Loss Corridors -- 1.75 points | H23: ='Point Grid'!J22 -> Finished
A24: Q16 -- Grossi -- Probable Maximum Loss -- 1.75 points | H24: ='Point Grid'!J23 -> Finished
A25: Q17 -- Grossi -- Catastrophe Modules -- 2.00 points | H25: ='Point Grid'!J24 -> Finished

Sheet 1
A1: 1 | B1: Finished | H1: Navigator | K1: Solution
J2: (a) | K2: Notice we're given claim counts rather than claim frequencies. Also, LOB 1
A3: Points | B3: An insurance company is planning to expand into a new territory and has decided to review its historical | K3: has increasing premiums and claim counts. So we'll need to convert to claim
A4: =INDEX('Point Grid'!B:B,MATCH('1'!A1,'Point Grid'!A:A,0)) -> 9 | B4: loss experience in order to determine whether it will require additional capital to support the expansion. | K4: frequencies before we can address the question.
B6: The insurance company has engaged an actuarial consultant to provide insights into a prospective loss ratio | K6: We are given 5 periods for each line of business and need to estimate the
B7: for the new territory. The following table outlines the insurance company's historical experience for two | K7: overall claim frequency for each. Therefore we have 5 - 1 = 4 degrees of freedom,
B8: long-tailed lines of business (LOB): | K8: So the critical value (using the table given) is 7.779
C10: Earned Premiums | E10: Ultimate Losses | G10: Ultimate Claim Counts | K10: Average Frequencies (per $000):
B11: Accident Years | C11: LOB 1 | D11: LOB 2 | E11: LOB 1 | F11: LOB 2 | G11: LOB 1 | H11: LOB 2 | K11: LOB 1 | L11: =G17/(C17/1000) -> 0.01463791491
B12: 1991 – 1995 | C12: 12033000 | D12: 1766000 | E12: 2329000 | F12: 1236000 | G12: 170 | H12: 170 | K12: LOB 2 | L12: =H17/(D17/1000) -> 0.1073517605
B13: 1996 – 2000 | C13: 13812000 | D13: 1819000 | E13: 2762000 | F13: 1273000 | G13: 210 | H13: 172
B14: 2001 – 2005 | C14: 13985000 | D14: 1751000 | E14: 2797000 | F14: 1506000 | G14: 210 | H14: 201 | L14: Actual | M14: Expected | N14: Actual | O14: Expected
B15: 2006 – 2010 | C15: 16444000 | D15: 1710000 | E15: 3288000 | F15: 1471000 | G15: 240 | H15: 195 | K15: AYs | L15: LOB 1 | M15: LOB 1 | N15: LOB 2 | O15: LOB 2
B16: 2011 – 2015 | C16: 17507000 | D16: 1673000 | E16: 3350000 | F16: 1439000 | G16: 250 | H16: 198 | K16: 1991 – 1995 | L16: =G12 -> 170 | M16: =(C12/1000)*$L$11 -> 176.1380301 | N16: =H12 -> 170 | O16: =(D12/1000)*$L$12 -> 189.5832091
B17: Total | C17: =SUM(C12:C16) -> 73781000 | D17: 8719000 | E17: 14526000 | F17: 6925000 | G17: 1080 | H17: 936 | K17: 1996 – 2000 | L17: =G13 -> 210 | M17: =(C13/1000)*$L$11 -> 202.1788807 | N17: =H13 -> 172 | O17: =(D13/1000)*$L$12 -> 195.2728524
K18: 2001 – 2005 | L18: 210 | M18: 204.71124 | N18: 201 | O18: 187.9729327
A19: (a) | B19: Conduct chi-square tests with an α value of 0.10 on actual vs. expected claim counts to confirm | K19: 2006 – 2010 | L19: 240 | M19: 240.7058728 | N19: 195 | O19: 183.5715105
A20: =INDEX('Point Grid'!$C$8:$I$26,MATCH($A$1,'Point Grid'!$A$8:$A$26,0),MATCH(A19,'Point Grid'!$C$7:$I$7,0)) -> 1.5 | B20: whether or not risk parameters have shifted over time. Use the following table of critical values: | K20: 2011 – 2015 | L20: 250 | M20: 256.2659763 | N20: 198 | O20: 179.5994954
A21: 1.5 | C21: Degrees of | D21: Critical Value | K21: Chi-Squared | M21: =(L16-M16)^2/M16+(L17-M17)^2/M17+(L18-M18)^2/M18+(L19-M19)^2/M19+(L20-M20)^2/M20 -> 0.8083665537 | O21: =(N16-O16)^2/O16+(N17-O17)^2/O17+(N18-O18)^2/O18+(N19-O19)^2/O19+(N20-O20)^2/O20 -> 8.296051776
C22: Freedom | D22: α = 0.10
C23: 1 | D23: 2.706 | K23: Since 0.8084 < 7.779 we have no reason to reject the null hypothesis, i.e.
C24: 2 | D24: 4.605 | K24: the risk parameters have not shifted over time for LOB 1.
C25: 3 | D25: 6.251
C26: 4 | D26: 7.779 | K26: Since 8.2961 > 7.779 we reject the null hypothesis and conclude the risk parameters
C27: 5 | D27: 9.236 | K27: have shifted over time for LOB 2.
C28: 6 | D28: 10.645
J29: (b) | K29: We can calculate an expected future claim frequency for any period that has
A30: (b) | B30: To select an expected future claim frequency for LOB 2, the actuarial consultant has decided to | K30: more than two periods preceding it. It's important to not use any unknown information
A31: =INDEX('Point Grid'!$C$8:$I$26,MATCH($A$1,'Point Grid'!$A$8:$A$26,0),MATCH(A30,'Point Grid'!$C$7:$I$7,0)) -> 1.5 | B31: assign weight (Z/2) to each of the most recent two groups of accident years and the remaining | K31: when calculating the frequencies.
A32: 1.5 | B32: weight (1 - Z) to the overall mean frequency. | K32: AYs | L32: Actual Freq | M32: 1st Prior | N32: 2nd Prior | O32: Overall | P32: Expected Freq
K33: 2001 – 2005 | L33: =H14/(D14/1000) -> 0.1147915477 | M33: =H13/(D13/1000) -> 0.09455744915 | N33: =H12/(D12/1000) -> 0.09626274066 | O33: =SUM($H$12:H13)/(SUM($D$12:D13)/1000) -> 0.09539748954 | P33: =($C$37/2)*M33+($C$37/2)*N33+(1-$C$37)*O33 -> 0.09539875008
B34: Calculate the expected future claim frequency for LOB 2 by first using the mean-squared-error | K34: 2006 – 2010 | L34: =H15/(D15/1000) -> 0.1140350877 | M34: =H14/(D14/1000) -> 0.1147915477 | N34: =H13/(D13/1000) -> 0.09455744915 | O34: =SUM($H$12:H14)/(SUM($D$12:D14)/1000) -> 0.1017616192 | P34: =($C$37/2)*M34+($C$37/2)*N34+(1-$C$37)*O34 -> 0.1020529071
B35: (MSE) criterion to determine the optimal value for Z from the following three choices: | K35: 2011 – 2015 | L35: 0.118350269 | M35: 0.1140350877 | N35: 0.1147915477 | O35: =SUM($H$12:H15)/(SUM($D$12:D15)/1000) -> 0.1047402782 | P35: =($C$37/2)*M35+($C$37/2)*N35+(1-$C$37)*O35 -> 0.1057075821
C36: Z value | D36: MSE
C37: 0.1 | D37: Not provided
C38: 0.5 | D38: 0.00019
C39: 0.9 | D39: 0.000164 | E39: Note: These figures were calculated using $000 omitted | K39: Mean Squared Error (MSE) @ Z = 0.1: | N39: =((L33-P33)^2+(L34-P34)^2+(L35-P35)^2)/3 -> 0.0002264969274
K40: Since Z = 0.90 has the lowest MSE, use Z = 0.90.
B41: (The following information relates to parts (c), (d), (e), (f), and (g) below)
B42: The insurance company is planning to write $10,000,000 of new business for LOB 1 in the new territory. | K42: Expected frequency uses all of the information known to date:
B43: The following reinsurance treaty options are available to the insurance company to support its expansion: | K43: =0.9/2*H16/(D16/1000)+0.9/2*H15/(D15/1000)+(1-0.9)*SUM(H12:H16)/(SUM(D12:D16)/1000) -> 0.1153085866 | L43: claims per $1,000 earned premium.
B45: Option 1: 2,000,000 xs 6,000,000 Aggregate Excess of Loss | J45: (c) | K45: Rate on line = Ceded Premium / Covered Loss
B46: • Rate on Line = 12.5%
K47: Option 1: Layer covers $2 million of loss. So the ceded premium is
B48: Option 2: 25% Aggregate Quota Share | K48: ="12.5% * $2 million = " & TEXT(12.5%*2*10^6,"$0,000") -> 12.5% * $2 million = $250,000
B49: • Ceding Commission = 20% | M49: Ceded
B50: • Target ceded profit of 20%, which specifies that if ceded premiums less ceding commission and loss | K50: Scenario | L50: Gross Loss | M50: Premium | N50: Loss | O50: Profit
B51: exceeds 20% of ceded premiums, the excess is paid back to the cedent through a profit commission. | K51: 1 | L51: =D57 -> 5000000 | M51: =12.5%*2*10^6 -> 250000 | N51: =MAX(0,MIN(2*10^6,L51-6*10^6)) -> 0 | O51: =M51-N51 -> 250000
B52: • Aggregate Ceded Loss Ratio Cap = 220% | K52: 2 | L52: =D58 -> 10000000 | M52: =12.5%*2*10^6 -> 250000 | N52: =MAX(0,MIN(2*10^6,L52-6*10^6)) -> 2000000 | O52: =M52-N52 -> -1750000
K53: 3 | L53: 20000000 | M53: 250000 | N53: 2000000 | O53: -1750000
A54: (c) | B54: Calculate the ceded profit for each reinsurance option for the following gross loss amount scenarios: | K54: 4 | L54: 30000000 | M54: 250000 | N54: 2000000 | O54: -1750000
A55: =INDEX('Point Grid'!$C$8:$I$26,MATCH($A$1,'Point Grid'!$A$8:$A$26,0),MATCH(A54,'Point Grid'!$C$7:$I$7,0)) -> 2.25 | C55: Scenario | D55: LOB 1 Gross
A56: 2.25 | D56: Loss Amount | K56: Option 2:
C57: 1 | D57: 5000000 | K57: Ceded Premium: 25% * $10 million = | N57: =25%*10*10^6 -> 2500000
C58: 2 | D58: 10000000 | K58: Ceding Commission: 20% * ceded premium = | O58: =20%*N57 -> 500000
C59: 3 | D59: 20000000 | M59: Ceded | O59: Ceding | P59: Profit | Q59: Ceded
C60: 4 | D60: 30000000 | K60: Scenario | L60: Gross Loss | M60: Premium | N60: Loss | O60: Commission | P60: Commission | Q60: Profit
K61: 1 | L61: =D57 -> 5000000 | M61: =$N$57 -> 2500000 | N61: =MIN(25%*L61,220%*M61) -> 1250000 | O61: =20%*M61 -> 500000 | P61: =MAX(0,M61-O61-N61 - 20%*M61) -> 250000 | Q61: =M61-N61-O61-P61 -> 500000
A62: (d) | B62: The actuarial consultant has decided that a prospective loss ratio of 20% for LOB 1 is appropriate, but | K62: 2 | L62: =D58 -> 10000000 | M62: =$N$57 -> 2500000 | N62: =MIN(25%*L62,220%*M62) -> 2500000 | O62: =20%*M62 -> 500000 | P62: =MAX(0,M62-O62-N62 - 20%*M62) -> 0 | Q62: =M62-N62-O62-P62 -> -500000
A63: =INDEX('Point Grid'!$C$8:$I$26,MATCH($A$1,'Point Grid'!$A$8:$A$26,0),MATCH(A62,'Point Grid'!$C$7:$I$7,0)) -> 1.5 | B63: that the gross capital required to support the expansion is $8,000,000 based on the insurance | K63: 3 | L63: 20000000 | M63: 2500000 | N63: 5000000 | O63: 500000 | P63: 0 | Q63: -3000000
A64: 1.5 | B64: company's requirement to hold capital at a 1-in-100 year return period. Assume that aggregate LOB 1 | K64: 4 | L64: 30000000 | M64: 2500000 | N64: 5500000 | O64: 500000 | P64: 0 | Q64: -3500000
B65: ground-up losses are lognormally distributed.
J66: (d) | K66: $10 million of new business for LOB 1 and a 20% prospective loss ratio corresponds to a
B67: The cumulative distribution function of a lognormal distribution is | K67: $2 million expected loss.
B68: where φ is the standard normal CDF, and μ and σ are the mean and | K68: This means
B69: standard deviation of the associated normal distribution.
K70: A 1-in-100 year capital requirement means P(X > 8million) = 0.01
B71: The mean and variance of a lognormal distribution are given below, as well as a table of values from | K71: So 1 - F(8 million) = 0.01, i.e. F(8 million) = 0.99
B72: the standard normal distribution function: | K72: Thus
F73: x | G73: φ(x)
F74: 1.751 | G74: 0.96 | K74: Rearranging the second equation to get an expression for μ and substituting
F75: 1.814 | G75: 0.9652 | K75: into the first gives
F76: 1.881 | G76: 0.97
F77: 1.916 | G77: 0.9723 | K77: This yields σ = 0.7019 or 3.9501
F78: 2.054 | G78: 0.98 | K78: Hence μ = 14.2624 or 6.7071.
F79: 2.121 | G79: 0.9831
F80: 2.326 | G80: 0.99 | K80: Coefficient of Variation = Standard Deviation (X) / E[X]
F81: 2.531 | G81: 0.9943 | K81: Case 1: | M81: Case 2:
B82: Determine the coefficient of variation for LOB 1, assuming it is less than 100%. | K82: =SQRT((EXP(0.7019^2)-1)*EXP(2*14.2624+0.7019^2))/EXP(14.2624+0.7019^2/2) -> 0.7979159538 | M82: =SQRT(EXP(3.9501^2-1)*EXP(2*6.7071+3.9501^2))/EXP(6.7071+3.9501^2/2) -> 1482.737032
A84: (e) | B84: Calculate the probability of each of the following for LOB 1 assuming aggregate losses are | K84: We're told the Coefficient of Variation is less than 100% so it must be Case 1.
A85: =INDEX('Point Grid'!$C$8:$I$26,MATCH($A$1,'Point Grid'!$A$8:$A$26,0),MATCH(A84,'Point Grid'!$C$7:$I$7,0)) -> 1 | B85: lognormally distributed:
A86: 1 | B86: i. Attaching the 2,000,000 xs 6,000,000 Aggregate Excess of Loss treaty | J86: (e) | K86: The treaty will attach if the loss exceeds $6 million
B87: ii. A negative ceded profit on the Aggregate Quota Share | J87: (i) | K87: P(X > 6 million) = 1 - F(6 million)
K88: F(6 million) = φ([ln(6,000,000) - 14.2624] / 0.7019 ) | P88: =(LN(6*10^6)-14.2624)/0.7019 -> 1.91604221
A89: (f) | B89: State one advantage and one disadvantage of the Aggregate Quota Share from the perspective of the | K89: '= φ(1.916) = 97.23%
A90: =INDEX('Point Grid'!$C$8:$I$26,MATCH($A$1,'Point Grid'!$A$8:$A$26,0),MATCH(A89,'Point Grid'!$C$7:$I$7,0)) -> 0.5 | B90: reinsurer. | K90: So P(X > 6 million) = 1 - 97.23%
A91: 0.5 | K91: =1-97.23% -> 0.0277
A93: (g) | B93: Recommend and justify which reinsurance treaty option the insurance company should select from LOB 1. | J93: (ii) | K93: A negative ceded profit occurs when the ceded premium less ceding commission equals the ceded loss.
A94: =INDEX('Point Grid'!$C$8:$I$26,MATCH($A$1,'Point Grid'!$A$8:$A$26,0),MATCH(A93,'Point Grid'!$C$7:$I$7,0)) -> 0.75 | B94: Assume both reinsurance treaty options provide the same amount of capital relief. | K94: There is no profit commission when you break even.
A95: 0.75 | K95: Thus, 25% * $10 million - 20% * 25% * $10 million - 25% * Loss < 0.
K96: That is, Loss > $ 8 million
K97: We're told $8 million is a 1-in-100 year loss so the probability of a negative ceded
K98: profit is 0.01
J100: (f) | K100: Advantage
K101: Easy to administer because it is a fixed percentage of each loss.
K103: Disadvantage
K104: The profit commission limits the upside for the reinsurer.
K106: (Alice: "Make sure you read the examiners report for more options")
J108: (g) | K108: Recommend the Aggregate Quota Share treaty because
K109: It protects the insurer from adverse loss scenarios up to a 220% loss ratio
K110: whereas the aggregate excess of loss treaty only protects a small layer ($2million)
K111: of adverse loss scenarios.
K112: Further, the profit commission will help the insurer benefit more from
K113: favorable loss experience.

Sheet 2
A1: 2 | B1: Finished | K1: Navigator | N1: Solution
M2: (a) | N2: E[N] = | O2: =SUMPRODUCT(C13:C15,D13:D15) -> 0.25
A3: Points | B3: A certain golf course holds a series of tournaments throughout the year, during which prizes are awarded if a player hits a | N3: E[X] = | O3: =SUMPRODUCT(C20:C23,D20:D23) -> 257500
A4: =INDEX('Point Grid'!B:B,MATCH('2'!A1,'Point Grid'!A:A,0)) -> 9.5 | B4: hole-in-one. The prize amounts vary based on the difficulty of the hole, but are consistent across tournaments. | N4: E[S] = E[N] * E[X] = | P4: =O3*O2 -> 64375
N5: This is the loss cost. Now load for expenses.
B6: The course has approached an insurer to design a policy which would protect the course from large prize payouts. | N6: Expense multiplier = 1/(1 - general expense - commission - taxes - underwriting)
B7: The insurer would pay the full prize amount directly to the winning player, and seek recoveries of any applicable | N7: =1/(1-D27-D28-D29-D30) -> 1.388888889
B8: deductible from the golf course.
N9: Note there are no fixed expenses.
B10: A single annual policy will cover all of the tournaments throughout a given year.
B11: The total number of holes-in-one in a given year (n), across all tournaments, has the following probability distribution: | N11: Guaranteed Cost Premium = | Q11: =P4*N7 -> 89409.72222
C12: n | D12: P(n)
C13: 0 | D13: 0.8 | M13: (b) | N13: $100,000 per-occurrence deductible gives X
C14: 1 | D14: 0.15 | N14: x | O14: P(x)
C15: 2 | D15: 0.05 | N15: =C20-100000 -> 0 | O15: =D20 -> 0.4
C16: 3 or more | D16: 0 | N16: =C21-100000 -> 150000 | O16: =D21 -> 0.35
N17: 400000 | O17: 0.24
B18: Given that a hole-in-one has occurred, the prize amount (x) has the following probability distribution: | N18: 900000 | O18: 0.01
C19: x | D19: P(x)
C20: 100000 | D20: 0.4 | N20: E[X] = | O20: =SUMPRODUCT(N15:N18,O15:O18) -> 157500
C21: 250000 | D21: 0.35 | N21: E[N] = | O21: =SUMPRODUCT(C13:C15,D13:D15) -> 0.25
C22: 500000 | D22: 0.24 | N22: E[S] = | O22: =O21*O20 -> 39375
C23: 1000000 | D23: 0.01 | N23: Then load for expenses
B25: The expenses and profit for this policy are: | N25: Deductible Premium = | P25: =O22*N7 -> 54687.5
C26: Fixed Expenses | D26: 0 | E26: None
C27: General Expenses | D27: 0.08 | E27: of premium | M27: (c) | N27: $1,000,000 aggregate deductible, no per-occurrence deductible.
C28: Commission | D28: 0.1 | E28: of premium | N28: To exceed the aggregate deductible we need at least one claim of
C29: Taxes | D29: 0.05 | E29: of premium | N29: $1,000,000 and one other claim.
C30: Underwriting Profit | D30: 0.05 | E30: of premium | N30: 1st Claim | O30: 2nd Claim | P30: P(X) | Q30: # Ways | R30: Payout
N31: 1000000 | O31: 100000 | P31: =D23*D20 -> 0.004 | Q31: 2 | R31: =O31 -> 100000
B32: The above assumptions apply to all program structures. | N32: 1000000 | O32: 250000 | P32: =D23*D21 -> 0.0035 | Q32: 2 | R32: =O32 -> 250000
N33: 1000000 | O33: 500000 | P33: =D23*D22 -> 0.0024 | Q33: 2 | R33: 500000
A34: (a) | B34: Calculate the annual guaranteed cost premium for this policy. | N34: 1000000 | O34: 1000000 | P34: =D23*D23 -> 0.0001 | Q34: 1 | R34: 1000000
A35: =INDEX('Point Grid'!$C$8:$I$26,MATCH($A$1,'Point Grid'!$A$8:$A$26,0),MATCH(A34,'Point Grid'!$C$7:$I$7,0)) -> 1
A36: 1 | N36: E[X] = | O36: =SUMPRODUCT(P31:P34,Q31:Q34,R31:R34) -> 5050
N37: P(2+ claims) = | P37: =D15 -> 0.05
A38: (b) | B38: Calculate the annual premium for this policy under a $100,000 per-occurrence deductible. | N38: E[S] = | O38: =O36*P37 -> 252.5
A39: =INDEX('Point Grid'!$C$8:$I$26,MATCH($A$1,'Point Grid'!$A$8:$A$26,0),MATCH(A38,'Point Grid'!$C$7:$I$7,0)) -> 1 | N39: Load for expenses
A40: 1
N41: Deductible Premium = | P41: =O38*N7 -> 350.6944444
A42: (c) | B42: Calculate the annual premium for this policy under a $1,000,000 annual aggregate deductible and no per-occurrence
A43: =INDEX('Point Grid'!$C$8:$I$26,MATCH($A$1,'Point Grid'!$A$8:$A$26,0),MATCH(A42,'Point Grid'!$C$7:$I$7,0)) -> 1.75 | B43: deductible. | M43: (d) | N43: $250,000 Franchise Deductible
A44: 1.75 | N44: Eliminates claims below $250,000 but pays out in full on those above.
N45: Gives distribution
A46: (d) | B46: Calculate the annual premium for this policy under a $250,000 franchise deductible. | N46: X | O46: P(X)
A47: =INDEX('Point Grid'!$C$8:$I$26,MATCH($A$1,'Point Grid'!$A$8:$A$26,0),MATCH(A46,'Point Grid'!$C$7:$I$7,0)) -> 1 | N47: 0 | O47: =D20 -> 0.4
A48: 1 | N48: 0 | O48: =D21 -> 0.35
N49: =C22 -> 500000 | O49: =D22 -> 0.24
A50: (e) | B50: Explain which of the deductible structures above would generate the greatest credit risk to the insurer and estimate | N50: =C23 -> 1000000 | O50: =D23 -> 0.01
A51: =INDEX('Point Grid'!$C$8:$I$26,MATCH($A$1,'Point Grid'!$A$8:$A$26,0),MATCH(A50,'Point Grid'!$C$7:$I$7,0)) -> 1 | B51: the magnitude of that risk.
A52: 1 | N52: E[X] = | O52: =SUMPRODUCT(N47:N50,O47:O50) -> 130000
N53: E[N] = | O53: =SUMPRODUCT(C13:C15,D13:D15) -> 0.25
A54: (f) | B54: The insurer has allocated $45,000 of capital to support the guaranteed cost policy in part (a) above. | N54: E[S] = | O54: =O52*O53 -> 32500
A55: =INDEX('Point Grid'!$C$8:$I$26,MATCH($A$1,'Point Grid'!$A$8:$A$26,0),MATCH(A54,'Point Grid'!$C$7:$I$7,0)) -> 1.25 | B55: Recommend and justify which of the three options below would be the most appropriate capital requirement to | N55: Then load for expenses
A56: 1.25 | B56: support the per-occurrence deductible policy in part (b) above: | N56: Deductible Premium = | P56: =O54*N7 -> 45138.88889
B57: i. $45,000
B58: ii. $32,000 | M58: (e) | N58: The $1 million aggregate deductible generates the most credit risk
B59: iii. $19,000 | N59: because the insurer payouts all claims and then seeks to recover the deductible from the insured.
N60: The magnitude of the credit risk is the expected loss below the deductible,
A61: (g) | B61: Based on the success of this program, the insurer wishes to expand this coverage to other golf courses. | N61: which is the difference between the guaranteed cost policy expected loss
A62: =INDEX('Point Grid'!$C$8:$I$26,MATCH($A$1,'Point Grid'!$A$8:$A$26,0),MATCH(A61,'Point Grid'!$C$7:$I$7,0)) -> 2.5 | B62: The insurer will offer varying per-occurrence limits with no aggregate limits, the prize amounts would remain the same, | N62: and the aggregate deductible expected loss, i.e.
A63: 2.5 | B63: and the same distribution assumptions would apply. | N63: =P4-O38 -> 64122.5
B65: Using $100,000 as a basic limit, use the variance method to calculate the risk-loaded ILF for a $500,000 policy limit. | M65: (f) | N65: The capital required under the policy with a per-occurrence deductible
B66: Assume ρ(100,000) = 5,750 and use k = 0.0000005. | N66: is less than needed for the guaranteed cost policy because the insured covers part of the risk.
N67: The ratio of expected loss for the per-occurrence deductible to the guaranteed cost policy is
N68: =O22/P4 -> 0.6116504854
N69: Multiplying this by the $45,000 required for the guaranteed cost policy gives
N70: =N68*45000 -> 27524.27184
N71: So at least this amount but less than $45,000 is required, recommend option (ii) $32,000.
M73: (g)
H74: X; 100,000 | I74: X2; 100,000 | N74: Solving for δ yields δ = | P74: =(5750/0.0000005-I81)/H81^2 -> 0.15
H75: =MIN(C20,100000) -> 100000 | I75: =MIN(C20,100000)^2 -> 10000000000 | N75: Now we calculate E[X2; 500,000] and E[X; 500,000] and apply the formula.
H76: =MIN(C21,100000) -> 100000 | I76: =MIN(C21,100000)^2 -> 10000000000
H77: =MIN(C22,100000) -> 100000 | I77: 10000000000 | N77: ρ(500,000) = | O77: =0.0000005*(I90+P74*H90^2) -> 48969.21875
H78: =MIN(C23,100000) -> 100000 | I78: 10000000000
H80: E[X; 100,000] | I80: E[X2; 100,000]
H81: =SUMPRODUCT(H75:H78,D20:D23) -> 100000 | I81: =SUMPRODUCT(I75:I78,D20:D23) -> 10000000000 | N81: Here, l = 500,000 and b = 100,000
N82: Risk Loaded ILF = | P82: =(H90+O77)/(H81+5750) -> 2.850772754
H83: X; 500,000 | I83: X2; 500,000
H84: =MIN(C20,500000) -> 100000 | I84: =MIN(C20,500000)^2 -> 10000000000
H85: =MIN(C21,500000) -> 250000 | I85: =MIN(C21,500000)^2 -> 62500000000
H86: 500000 | I86: 250000000000
H87: 500000 | I87: 250000000000
H89: E[X; 500,000] | I89: E[X2; 500,000]
H90: =SUMPRODUCT(H84:H87,D20:D23) -> 252500 | I90: =SUMPRODUCT(I84:I87,D20:D23) -> 88375000000

Sheet 3
A1: 3 | B1: Finished | H1: Navigator | J1: Solution
I2: (a) | J2: Mod = Z*R + (1 - Z)*1
A3: Points | B3: An insurance company has a private passenger auto book of business with the following | J3: Here, Z = 0.038 and we know insureds in Group B have at least 1 claim.
A4: =INDEX('Point Grid'!B:B,MATCH('3'!A1,'Point Grid'!A:A,0)) -> 2.75 | B4: claims experience: | J4: P(at least 1 claim) = 1 - e-λ
B5: Group | C5: Number of Accident-Free Years | D5: Earned Premiums | E5: Current Merit Rating Factor | F5: Number of Claims Incurred | J5: R = 1/P(at least 1 claim) = | M5: =1/(1-EXP(-1*0.05)) -> 20.50416649
J7: Hence Mod = | L7: =0.038*M5+(1-0.038)*1 -> 1.741158327
B8: A | C8: 3 or more | D8: 216000000 | E8: 0.6 | F8: 25000 | J8: Since the current merit rating factor is given and we know we need the earned premiums to be
B9: X | C9: 2 | D9: 135000000 | E9: 0.75 | F9: 18000 | J9: comparable, i.e. not distorted by the merit rating factor, back out the merit rating factors.
B10: Y | C10: 1 | D10: 63750000 | E10: 0.85 | F10: 20000 | J10: Group | K10: Earned Premiums at Group B present rates (Adjusted earned premiums)
B11: B | C11: 0 | D11: 200000000 | E11: 1 | F11: C | J11: A | K11: =D8/E8 -> 360000000
B12: Total | D12: =SUM(D8:D11) -> 614750000 | F12: 63,000 + C | J12: X | K12: =D9/E9 -> 180000000
J13: Y | K13: 75000000
B14: • Claim counts follow a Poisson distribution with parameter λ = 0.05. | J14: B | K14: 200000000
B15: • The credibility for the new policy period for an insured that has had no claim-free years | J15: Total | K15: =SUM(K11:K14) -> 815000000
B16: is equal to 0.038.
J17: We set the experience mod equal to the incurred claims relativity (using adjusted EP as the exposure base)
A18: (a) | B18: Calculate C, the number of claims incurred for Group B. | J18: Group B Relativity
A19: =INDEX('Point Grid'!$C$8:$I$26,MATCH($A$1,'Point Grid'!$A$8:$A$26,0),MATCH(A18,'Point Grid'!$C$7:$I$7,0)) -> 1.5
A20: 1.5
A22: (b) | B22: Calculate the merit rating factor for an exposure that is accident-free for two or more years
A23: =INDEX('Point Grid'!$C$8:$I$26,MATCH($A$1,'Point Grid'!$A$8:$A$26,0),MATCH(A22,'Point Grid'!$C$7:$I$7,0)) -> 0.75 | B23: for the new policy period. | J23: Solving for C yields C = | L23: =L7*200000000*63000/(815000000-L7*200000000) -> 47001.03518
A24: 0.75 | J24: Which rounds to C = 47,000
A26: (c) | B26: Briefly explain two circumstances under which using earned premium as the exposure | I26: (b) | J26: Accident Free for 2 or more years corresponds to the group A + X
A27: =INDEX('Point Grid'!$C$8:$I$26,MATCH($A$1,'Point Grid'!$A$8:$A$26,0),MATCH(A26,'Point Grid'!$C$7:$I$7,0)) -> 0.5 | B27: base would not correct for maldistribution. | J27: The experience mod is the relative claim frequency for A + X relative to the entire population.
A28: 0.5 | J28: ModA+X = | K28: =(SUM(F8:F9)/SUM(K11:K12))/(SUM(F8:F10,47000)/SUM(K11:K14)) -> 0.589983165
J30: Since the merit rating factors listed are relative to Group B, we need the mod for Group B which is
J31: ModB = | K31: =L7 -> 1.741158327
J33: So the merit rating factor for Group A + X is the ratio of the mod for A+X to the mod for B.
J34: =K28/K31 -> 0.3388452135
I36: (c) | J36: 1.) When territories which have high frequencies are not high premium territories as well.
J37: 2.) When the territory differentials are not proper, i.e. the territory loss ratios are not approximately
J38: equal after applying the rate differentials.

Sheet 4
A1: 4 | B1: Finished | G1: Navigator | I1: Solution
H2: (a) | I2: Risk of adverse selection
A3: Points | B3: An insurance company is launching a new telematics program for their private passenger | I3: There is a low risk of adverse selection as drivers who know they are bad drivers are
A4: =INDEX('Point Grid'!B:B,MATCH('4'!A1,'Point Grid'!A:A,0)) -> 0.75 | B4: automobile book of business. Telematics devices record various attributes such as miles | I4: unlikely to join the program because they would receive higher rates. This supports offering a discount.
B5: driven and braking practices. Management decided to give a 5% discount to all customers
B6: that participate in the program. The Department of Insurance questions the filing and | I6: Relationship between risk and expected outcomes
B7: wants the company to address the following potential concerns: | I7: Since drivers are likely to engage in less risky behavior if they know they are being monitored,
I8: the loss experience should be lower for the telematics program than a traditional program.
B9: • Risk of adverse selection | I9: This cost savings should be passed along in the form of a discount for participating in the program.
B10: • Relationship between risk and expected outcomes
B11: • Practicality of monitoring the discount's effectiveness | I11: Practicality of monitoring the discount's effectiveness
I12: It is easy for the insurer to know who is participating in the telematics program and who is not.
A13: (a) | B13: Defend the use of the discount by briefly addressing each of the concerns in light of | I13: The loss experience can be monitored for those in the telematics program and those not and the
A14: =INDEX('Point Grid'!$C$8:$I$26,MATCH($A$1,'Point Grid'!$A$8:$A$26,0),MATCH(A13,'Point Grid'!$C$7:$I$7,0)) -> 0.75 | B14: Actuarial Standard of Practice No. 12, Risk Classification. | I14: effectiveness of the discount assessed.
A15: 0.75

Sheet 5
A1: 5 | B1: Finished | G1: Navigator | I1: Solution
H2: (a) | I2: Bin the Variable: We could create categorical variables by grouping together ages that have
A3: Points | B3: An actuary is analyzing a partial residual plot of the driver age variable, which is shown below. | I3: similar residuals. For instance creating groups for "15-25", "26-80" and "81+" captures the broad
A4: =INDEX('Point Grid'!B:B,MATCH('5'!A1,'Point Grid'!A:A,0)) -> 1.5 | I4: pattern of the residuals without the individual variability.
I6: Piecewise Linear Functions: We could use hinge functions to fit piecewise linear functions to the residuals.
I7: This captures the different slopes of the residuals and allows for interpolation to give greater
I8: rating refinement. In this case we can use hinge points at 25 and 75 years old.
H10: (b) | I10: Not all bins may contain sufficient data to produce credible estimates of the coefficients or produce stable predictions.
I12: The hinge points must be chosen by manual inspection. This is time consuming and subject to
I13: judgment so may not be optimal.
A20: (a) | B20: Adding polynomial terms is one approach to address the non-linearity in the driver age
A21: =INDEX('Point Grid'!$C$8:$I$26,MATCH($A$1,'Point Grid'!$A$8:$A$26,0),MATCH(A20,'Point Grid'!$C$7:$I$7,0)) -> 1 | B21: variable.
A22: 1
B23: Briefly describe two other alternative approaches and how they can be used to improve the
B24: fit of the driver age variable shown above.
A26: (b) | B26: Briefly describe a downside to each of the two alternative approachs recommended in
A27: =INDEX('Point Grid'!$C$8:$I$26,MATCH($A$1,'Point Grid'!$A$8:$A$26,0),MATCH(A26,'Point Grid'!$C$7:$I$7,0)) -> 0.5 | B27: part (a) above.
A28: 0.5

Sheet 6
A1: 6 | B1: Finished | G1: Navigator | I1: Solution
H2: (a) | I2: F-Test | J2: The F-statistic is
A3: Points | B3: An actuary is comparing the output of two generalized linear models to develop a new
A4: =INDEX('Point Grid'!B:B,MATCH('6'!A1,'Point Grid'!A:A,0)) -> 2.5 | B4: rating plan for personal auto. Model statistics are shown below: | J4: is the estimated dispersion parameter for the larger model (model B)
D5: Model | I5: D denotes the deviance of the model and is given by D = 2*(llsat - llmodel)
D6: Saturated | E6: A | F6: B | I6: where ll stands for log-likelihood.
B7: Log-Likelihood | D7: -1000 | E7: -1500 | F7: -1465
B8: Estimated Dispersion Parameter | D8: 1.75 | E8: 1.75 | F8: 1.75 | I8: Model B adds the Driver Age variable which is a 2nd order polynomial. This adds 2 parameters
I9: (the coefficient for x and the coefficient for x2)
B10: • Model A is a nested model of Model B, where Model B has an additional variable for | J10: =(2*(D7-E7)-2*(D7-F7))/(2*F8) -> 20 | K10: > 19.5 which is the critical value.
B11: driver age. | I11: Here, F =
B12: • Driver age is fit using a second-order polynomial. | I12: So we reject the null hypothesis and accept model B.
B13: • The critical value to be used from the F-distribution is 19.5.
I14: AIC | J14: AIC = -2llmodel + 2p
A15: (a) | B15: Using two statistical tests, recommend whether or not driver age should be included in the | J15: Here p is the number of parameters in the model, which is unknown.
A16: =INDEX('Point Grid'!$C$8:$I$26,MATCH($A$1,'Point Grid'!$A$8:$A$26,0),MATCH(A15,'Point Grid'!$C$7:$I$7,0)) -> 2 | B16: rating plan. | I16: We have AICA = -2(-1500) +2pS
A17: 2 | I17: and AICB = -2(-1465) +2(pS + 2)
I18: because pB = pS + 2 for the 2nd degree polynomial added for Driver Age.
A19: (b) | B19: Describe why the deviance statistic alone should not be used to assess model fit.
A20: =INDEX('Point Grid'!$C$8:$I$26,MATCH($A$1,'Point Grid'!$A$8:$A$26,0),MATCH(A19,'Point Grid'!$C$7:$I$7,0)) -> 0.5 | I20: Thus, AICA - AICB = 66 > 0 which implies model B is better because it has the smaller AIC value.
A21: 0.5
I22: Both the F-Test and AIC test imply model B is the better model. Therefore, include driver age
I23: in the rating plan.
H25: (b) | I25: The deviance statistic shouldn't be used by itself because adding more variables to the model
I26: will always decrease the deviance even though the model may become overfit to the training data (lose predictiveness).

Sheet 7
A1: 7 | B1: Finished | G1: Navigator | J1: Solution
I2: (a) | J2: Policy 1 | K2: ln( 1.3% / [1 - 1.3%]) = | M2: =LN(C17/(1-C17)) -> -4.329720682
A3: Points | B3: An actuary is planning to add a credit-based insurance score to a model that estimates the | J3: Policy 2 | K3: ln( 20.3% / [1 - 20.3%]) = | M3: =LN(C18/(1-C18)) -> -1.3676487
A4: =INDEX('Point Grid'!B:B,MATCH('7'!A1,'Point Grid'!A:A,0)) -> 2.5 | B4: probability of a policy having a claim. The actuary has decided to offset all of the current model | J4: Policy 3 | K4: ln( 2.5% / [1 - 2.5%]) = | M4: -3.663561646
B5: variables before fitting the new variable.
I6: (b)
B7: Given the following:
B8: • The current model (without the insurance score variable) is a logit-link binomial GLM | J8: Policy 1 | K8: ln( u / [1 - u]) = -0.02 * 78 + 1.25 + -4.330 = | O8: =C23*D17+C22+M2 -> -4.639720682
B9: (logistic regression). | K9: so u = | L9: =1/(1+EXP(-O8)) -> 0.009567965244
B10: • The logit link function is defined as
J11: Policy 2 | K11: ln( u / [1 - u]) = -0.02 * 92 + 1.25 + -1.368 = | O11: =C23*D18+C22+M3 -> -1.9576487
B12: • The insurance score is a continuous variable having a value between 1 and 100. | K12: so u = | L12: =1/(1+EXP(-O11)) -> 0.1237217376
B13: • The current fitted values and insurance score for three policies as well as regression results
B14: from the fit of the insurance score variable are given below: | J14: Policy 3 | K14: ln( u / [1 - u]) = -0.02 * 35 + 1.25 + -3.664 = | O14: =C23*D19+C22+M4 -> -3.113561646
C15: Fitted Probability | D15: Insurance | K15: so u = | L15: =1/(1+EXP(-O14)) -> 0.04255130365
B16: Policy Number | C16: Without Insurance Score | D16: Score
B17: 1 | C17: 0.013 | D17: 78 | I17: (c) | J17: Logit function has range (-ꚙ, ꚙ)
B18: 2 | C18: 0.203 | D18: 92
B19: 3 | C19: 0.025 | D19: 35 | J19: Logistic function has range (0, 1)
B21: Variable | C21: Parameter Estimate | I21: (d) | J21: The logistic function is often used to model probabilities because it takes any number
B22: Intercept | C22: 1.25 | J22: between negative infinity and infinity, and maps it to a unique value between 0 and 1.
B23: Insurance Score | C23: -0.02 | J23: Since this is the same range as probabilities, this is a natural mapping.
A25: (a) | B25: Calculate the offset term to be used in the regression for each of the three policies above. | I25: (e) | J25: A GLM often produces illogical results when estimation relativities for deductibles or increased limits.
A26: =INDEX('Point Grid'!$C$8:$I$26,MATCH($A$1,'Point Grid'!$A$8:$A$26,0),MATCH(A25,'Point Grid'!$C$7:$I$7,0)) -> 0.5 | J26: This is due to selection effects, such as underwriters not offering higher limits or low deductibles
A27: 0.5 | J27: to riskier insureds.
J28: The deductible and ILF relativities should be calculated outside of the GLM and then brought
A29: (b) | B29: Calculate the revised fitted probability of having a claim for each of the three policies above. | J29: into the GLM by offsetting the relativities.
A30: =INDEX('Point Grid'!$C$8:$I$26,MATCH($A$1,'Point Grid'!$A$8:$A$26,0),MATCH(A29,'Point Grid'!$C$7:$I$7,0)) -> 0.75
A31: 0.75
A33: (c) | B33: Identify the range of:
A34: =INDEX('Point Grid'!$C$8:$I$26,MATCH($A$1,'Point Grid'!$A$8:$A$26,0),MATCH(A33,'Point Grid'!$C$7:$I$7,0)) -> 0.5 | B34: i. the logit function
A35: 0.5 | B35: ii. the logistic function
A37: (d) | B37: Briefly explain why logistic regression is often used to model probabilities.
A38: =INDEX('Point Grid'!$C$8:$I$26,MATCH($A$1,'Point Grid'!$A$8:$A$26,0),MATCH(A37,'Point Grid'!$C$7:$I$7,0)) -> 0.25
A39: 0.25
A41: (e) | B41: Identify and briefly describe one situation in which the use of an offset is preferable to
A42: =INDEX('Point Grid'!$C$8:$I$26,MATCH($A$1,'Point Grid'!$A$8:$A$26,0),MATCH(A41,'Point Grid'!$C$7:$I$7,0)) -> 0.5 | B42: (re)fitting all variables.
A43: 0.5

Sheet 8
A1: 8 | B1: Finished | G1: Navigator | I1: Solution
H2: (a) | I2: The risk adjusted ILFs are more accurate as they explicitly calculate how the risk load
A3: Points | B3: An actuary has been using risk-adjusted increased limit factors to account for riskiness in pricing. | I3: varies as the limits increase. Varying the profit requires more judgment and so
A4: =INDEX('Point Grid'!B:B,MATCH('8'!A1,'Point Grid'!A:A,0)) -> 1.5 | B4: The actuary's coworker has suggested an alternate approach of using non-risk-adjusted | I4: cannot be guaranteed to be accurate.
B5: increased limit factors and, instead, varying the profit and contingency load with the
B6: policy limit. | I6: The risk adjusted ILFs are an involved calculation which must be calibrated to the portfolio.
I7: It would be easier to vary the profit and contingency loads.
A8: (a) | B8: Compare and contrast the two methods with respect to each of the following:
A9: =INDEX('Point Grid'!$C$8:$I$26,MATCH($A$1,'Point Grid'!$A$8:$A$26,0),MATCH(A8,'Point Grid'!$C$7:$I$7,0)) -> 1.5 | B9: • Accuracy | I9: The risk adjusted ILFs are clear to someone with a numeric training but varying the
A10: 1.5 | B10: • Ease of calculation | I10: profit and contingency loads is more likely to make intuitive sense to someone without
B11: • Clarity | I11: a numeric background.

Sheet 9
A1: 9 | B1: Finished | K1: Navigator | M1: Solution | S1: Manual | U1: Standard | V1: Manual | W1: Standard
L2: (a) | M2: Risk | N2: Rank | P2: Quintile | Q2: Risk A | R2: Risk B | S2: Premium | T2: Loss | U2: Premium | V2: Loss Ratio | W2: Loss Ratio
A3: Points | B3: Three insurers are using experience rating to determine premiums for a specific class of business. The | M3: 1 | N3: =_xlfn.RANK.AVG(E10,$E$10:$E$19,1) -> 8 | P3: 1 | Q3: =INDEX($M$3:$M$12,MATCH(1,$N$3:$N$12,0)) -> 2 | R3: =INDEX($M$3:$M$12,MATCH(2,$N$3:$N$12,0)) -> 8 | S3: =SUMIFS($C$10:$C$19,$B$10:$B$19,Q3)+SUMIFS($C$10:$C$19,$B$10:$B$19,R3) -> 2200 | T3: =SUMIFS($D$10:$D$19,$B$10:$B$19,Q3)+SUMIFS($D$10:$D$19,$B$10:$B$19,R3) -> 1290 | U3: =SUMIFS($F$10:$F$19,$B$10:$B$19,Q3)+SUMIFS($F$10:$F$19,$B$10:$B$19,R3) -> 1548 | V3: =T3/S3 -> 0.5863636364 | W3: =T3/U3 -> 0.8333333333
A4: =INDEX('Point Grid'!B:B,MATCH('9'!A1,'Point Grid'!A:A,0)) -> 4.25 | B4: same ten risks were rated using the experience plan of each insurer. Information related to each rating | M4: 2 | N4: =_xlfn.RANK.AVG(E11,$E$10:$E$19,1) -> 1 | P4: 2 | Q4: =INDEX($M$3:$M$12,MATCH(3,$N$3:$N$12,0)) -> 10 | R4: =INDEX($M$3:$M$12,MATCH(4,$N$3:$N$12,0)) -> 4 | S4: =SUMIFS($C$10:$C$19,$B$10:$B$19,Q4)+SUMIFS($C$10:$C$19,$B$10:$B$19,R4) -> 2475 | T4: =SUMIFS($D$10:$D$19,$B$10:$B$19,Q4)+SUMIFS($D$10:$D$19,$B$10:$B$19,R4) -> 1625 | U4: =SUMIFS($F$10:$F$19,$B$10:$B$19,Q4)+SUMIFS($F$10:$F$19,$B$10:$B$19,R4) -> 1901 | V4: =T4/S4 -> 0.6565656566 | W4: =T4/U4 -> 0.8548132562
B5: plan is given below: | M5: 3 | N5: 10 | P5: 3 | Q5: =INDEX($M$3:$M$12,MATCH(5,$N$3:$N$12,0)) -> 5 | R5: =INDEX($M$3:$M$12,MATCH(6,$N$3:$N$12,0)) -> 9 | S5: 2525 | T5: 2025 | U5: =SUMIFS($F$10:$F$19,$B$10:$B$19,Q5)+SUMIFS($F$10:$F$19,$B$10:$B$19,R5) -> 2251 | V5: =T5/S5 -> 0.801980198 | W5: 0.8996001777
M6: 4 | N6: 4 | P6: 4 | Q6: =INDEX($M$3:$M$12,MATCH(7,$N$3:$N$12,0)) -> 6 | R6: =INDEX($M$3:$M$12,MATCH(8,$N$3:$N$12,0)) -> 1 | S6: 1910 | T6: 1750 | U6: =SUMIFS($F$10:$F$19,$B$10:$B$19,Q6)+SUMIFS($F$10:$F$19,$B$10:$B$19,R6) -> 1842 | V6: =T6/S6 -> 0.9162303665 | W6: 0.9500542888
B7: Insurer 1's Plan | H7: Insurer 2's Plan | M7: 5 | N7: 5 | P7: 5 | Q7: =INDEX($M$3:$M$12,MATCH(9,$N$3:$N$12,0)) -> 7 | R7: =INDEX($M$3:$M$12,MATCH(10,$N$3:$N$12,0)) -> 3 | S7: 2175 | T7: 2375 | U7: =SUMIFS($F$10:$F$19,$B$10:$B$19,Q7)+SUMIFS($F$10:$F$19,$B$10:$B$19,R7) -> 2373 | V7: =T7/S7 -> 1.091954023 | W7: 1.000842815
B8: Risk # | C8: Manual | D8: Loss | E8: Mod | F8: Standard | H8: Quintile | I8: Manual | J8: Standard | M8: 6 | N8: 7
C9: Premium | F9: Premium | I9: Loss Ratio | J9: Loss Ratio | M9: 7 | N9: 9 | T9: Sample Variance | V9: =_xlfn.VAR.S(V3:V7) -> 0.04110017138 | W9: =_xlfn.VAR.S(W3:W7) -> 0.004715620383
B10: 1 | C10: 810 | D10: 750 | E10: 0.97 | F10: 786 | H10: 1 | I10: 0.586 | J10: 0.945 | M10: 8 | N10: 2 | S10: Plan 1 | T10: Efficiency Statistic | W10: =W9/V9 -> 0.1147348107
B11: 2 | C11: 900 | D11: 490 | E11: 0.68 | F11: 612 | H11: 2 | I11: 0.657 | J11: 0.9 | M11: 9 | N11: 6
B12: 3 | C12: 950 | D12: 1075 | E12: 1.13 | F12: 1074 | H12: 3 | I12: 0.802 | J12: 0.853 | M12: 10 | N12: 3
B13: 4 | C13: 975 | D13: 650 | E13: 0.78 | F13: 761 | H13: 4 | I13: 0.916 | J13: 0.797
B14: 5 | C14: 1075 | D14: 850 | E14: 0.88 | F14: 946 | H14: 5 | I14: 1.092 | J14: 0.753 | M14: Plan 2
B15: 6 | C15: 1100 | D15: 1000 | E15: 0.96 | F15: 1056 | H15: Sample | I15: =_xlfn.VAR.S(I10:I14) -> 0.0411018 | J15: =_xlfn.VAR.S(J10:J14) -> 0.0059378 | M15: Efficiency Test = | O15: =J15/I15 -> 0.1444656925
B16: 7 | C16: 1225 | D16: 1300 | E16: 1.06 | F16: 1299 | H16: Variance
B17: 8 | C17: 1300 | D17: 800 | E17: 0.72 | F17: 936 | M17: Ordering the efficiency test statistics from lowest to highest gives the plans from best to worst.
B18: 9 | C18: 1450 | D18: 1175 | E18: 0.9 | F18: 1305 | M18: Insurer 3, Insurer 1, Insurer 2 (most to least equitable)
B19: 10 | C19: 1500 | D19: 975 | E19: 0.76 | F19: 1140
L20: (b) | M20: Insurer 1's standard loss ratios have an upward trend. This suggests they do not place enough credibility on actual experience.
B21: Insurer 3's Plan | M21: They will undercharge high risks and overcharge low risks, so good risks will leave and bad risks will stay on.
B22: Efficiency Test Statistic | D22: 0 | M22: They will face adverse selection.
A24: (a) | B24: Rank each of the insurer's rating plans from most to least equitable using the Efficiency Test as decribed | M24: Insurer 2's standard loss ratios have a downward trend. This means they place too much credibility on actual experience.
A25: =INDEX('Point Grid'!$C$8:$I$26,MATCH($A$1,'Point Grid'!$A$8:$A$26,0),MATCH(A24,'Point Grid'!$C$7:$I$7,0)) -> 2.75 | B25: by Fisher et al. | M25: They will overcharge high risks and undercharge low risks. Although bad risks will leave, the undercharging of good risks
A26: 2.75 | M26: will place a strain on them, causing their book to deteriorate.
A28: (b) | B28: Explain how adverse selection may affect each of the three insurers in a well-functioning insurance | M28: Insurer 3 is optimal, they charge an adequate premium to both good and bad risks so do not face adverse selection.
A29: =INDEX('Point Grid'!$C$8:$I$26,MATCH($A$1,'Point Grid'!$A$8:$A$26,0),MATCH(A28,'Point Grid'!$C$7:$I$7,0)) -> 1.5 | B29: market. Assume that no adjustments are made to the experience rating plans over time.
A30: 1.5

Sheet 10
A1: 10 | B1: Finished | H1: Navigator | K1: Solution
J2: (a) | K2: Do not use policy year 2018 as this year is incomplete. Assume the LDFs are policy year LDFs.
A3: Points | B3: An actuary is analyzing an experience rating plan using three years of experience that has the
A4: =INDEX('Point Grid'!B:B,MATCH('10'!A1,'Point Grid'!A:A,0)) -> 2.25 | B4: following information: | K4: Excess ratio:
B6: Policy effective date | E6: 2019-01-01 | K6: k = | L6: =(F30-F27)/F30 -> 0.7953312126
B7: Policy term | E7: One Year
B8: Annual loss trend | E8: 0.02 | K8: Year | L8: Expected Ultimate Unlimited Loss | M8: % Limited | N8: Loss Trend | O8: LDF | P8: Expected Ultimate Limited Loss
B9: Cap for individual claims | E9: 100000
B10: Credibility factor | E10: 0.6
B11: Expected ultimate loss before modification | E11: 500000 | K11: 2017 | L11: =$E$11 -> 500000 | M11: =1-$L$6 -> 0.2046687874 | N11: =(1+$E$8)^2 -> 1.0404 | O11: =C27 -> 1.5 | P11: =(L11*M11)/(N11*O11) -> 65573.74966
K12: 2016 | L12: =$E$11 -> 500000 | M12: =1-$L$6 -> 0.2046687874 | N12: =(1+$E$8)^3 -> 1.061208 | O12: =C28 -> 1.23 | P12: =(L12*M12)/(N12*O12) -> 78399.98763
B13: Reported Losses on Individual Claims by Policy Year as of June 30, 2018 | K13: 2015 | L13: 500000 | M13: 0.2046687874 | N13: =(1+$E$8)^4 -> 1.08243216 | O13: 1.2 | P13: 78784.3013
B14: 2015 | C14: 2016 | D14: 2017 | E14: 2018 | O14: Total | P14: =SUM(P11:P13) -> 222758.0386
B15: 3450 | C15: 2389 | D15: 456 | E15: 5694 | K15: Trend from 2017 to 2019 is 2 years, and so on.
B16: 5000 | C16: 345 | D16: 126890 | E16: 99832
B17: 234 | C17: 1236806 | D17: 2345 | E17: 76532 | K17: Expected reported loss is | M17: =P14 -> 222758.0386
B18: 98000 | D18: 1874
B19: 324789 | D19: 690 | J19: (b) | K19: 2015 | L19: 2016 | M19: 2017
D20: 26986 | K20: =MIN(B15,$E$9) -> 3450 | L20: =MIN(C15,$E$9) -> 2389 | M20: 456
K21: =MIN(B16,$E$9) -> 5000 | L21: =MIN(C16,$E$9) -> 345 | M21: =MIN(D16,$E$9) -> 100000
B22: The actuary has determined limited loss development factors (LDFs) and limited expected values | K22: 234 | L22: 100000 | M22: 2345
B23: using aggregate data from similar policies as follows: | K23: 98000 | M23: 1874
K24: 100000 | M24: 690
B25: Maturity to | C25: Limited | E25: Limit | F25: Limited Expected | M25: 26986
B26: Ultimate | C26: LDFs | F26: Value
B27: 18 months | C27: 1.5 | E27: 100000 | F27: 17500 | K27: Historical Capped Losses | M27: =SUM(K20:M25) -> 441769
B28: 30 months | C28: 1.23 | E28: 500000 | F28: 28567
B29: 42 months | C29: 1.2 | E29: 1000000 | F29: 43393
E30: Unlimited | F30: 85504
K31: Mod = | L31: =E10*(M27/M17)+(1-E10)*1 -> 1.589907227
A32: (a) | B32: Calculate the expected reported losses for this plan for the three years of experience combined.
A33: =INDEX('Point Grid'!$C$8:$I$26,MATCH($A$1,'Point Grid'!$A$8:$A$26,0),MATCH(A32,'Point Grid'!$C$7:$I$7,0)) -> 1.25
A34: 1.25
A36: (b) | B36: Calculate the experience modification factor for this policy.
A37: =INDEX('Point Grid'!$C$8:$I$26,MATCH($A$1,'Point Grid'!$A$8:$A$26,0),MATCH(A36,'Point Grid'!$C$7:$I$7,0)) -> 1
A38: 1

Sheet 11
A1: 11 | B1: Finished | G1: Navigator | I1: Solution
H2: (a)
A3: Points | B3: Given the following information for a construction insured's general liability policy that is
A4: =INDEX('Point Grid'!B:B,MATCH('11'!A1,'Point Grid'!A:A,0)) -> 1.25 | B4: subject to the ISO Commercial General Liability Experience and Schedule Rating Plan: | I4: Lookup EER, Z and MSL based on CSLC value given
I5: EER | J5: =D19 -> 0.929
B6: Company Subject Loss Cost | D6: 270500 | I6: Z | J6: =C19 -> 0.48
B7: Actual Experience Ratio | D7: 0.85 | I7: MSL | J7: =E19 -> 151450
B8: Policy Effective Date | D8: 2020-01-01
B9: Policy Term | D9: Annual | I9: Mod = | J9: =J6*(D7-J5)/J5 -> -0.04081808396
I10: The mod is a 4.08% credit.
B11: All major changes in the last five years for this insured:
B12: • Upgraded all equipment in 2015 | H12: (b) | I12: The upgraded equipment is already reflected in the experience so should not be counted
B13: • Improved employee training in 2018 | I13: for schedule rating.
B14: • Implemented a new safety program in 2018 | I14: Employee training is up to 6%
I15: Safety program is up to 2%
B16: You may use the information in the table below: | I16: Therefore, 10% is too high, the most they should get is 8%.
B17: CSLC | C17: Credibility | D17: EER | E17: MSL
B18: 250,492 – 260,752 | C18: 0.47 | D18: 0.926 | E18: 148050
B19: 260,753 – 271,411 | C19: 0.48 | D19: 0.929 | E19: 151450
B20: 271,412 – 282,493 | C20: 0.49 | D20: 0.932 | E20: 154900
A22: (a) | B22: Calculate the experience modification for this policy.
A23: =INDEX('Point Grid'!$C$8:$I$26,MATCH($A$1,'Point Grid'!$A$8:$A$26,0),MATCH(A22,'Point Grid'!$C$7:$I$7,0)) -> 0.5
A24: 0.5
A26: (b) | B26: An underwriter has selected a credit of 10% for schedule rating.
A27: =INDEX('Point Grid'!$C$8:$I$26,MATCH($A$1,'Point Grid'!$A$8:$A$26,0),MATCH(A26,'Point Grid'!$C$7:$I$7,0)) -> 0.75 | B27: Assess the reasonability of this selection.
A28: 0.75

Sheet 12
A1: 12 | B1: Finished | G1: Navigator | I1: Solution
H2: (a) | I2: Incurred Loss Retro
A3: Points | B3: An insured is considering an incurred loss retrospective rating plan and a paid loss deductible plan | I3: Per-occurrence limit and maximum ratable loss implies an aggregate limit is also present.
A4: =INDEX('Point Grid'!B:B,MATCH('12'!A1,'Point Grid'!A:A,0)) -> 3 | B4: with the following characteristics: | I4: Cost = [(Expected Excess Loss paid by insurer + Primary loss paid by insured)*(1+LAE%) + fixed expense]*(1 + tax rate%)
I5: = [(Expected Ultimate Loss)*(1+LAE%) + fixed expense]*(tax multiplier)
B6: Incurred Loss Retro | I6: =(F15*(1+F21)+F19)*F22 -> 603580
B7: Per-Occurrence Limit | F7: 150000
B8: Maximum Ratable Loss | F8: 500000 | I8: Paid Loss Deductible
I9: Cost = Deductible Payments + Premium
B10: Paid Loss Deductible | I10: Deductible Payments = Expected Ultimate Loss limited by occurrence and aggregate
B11: Per-Occurrence Deductible | F11: 150000 | I11: =F17 -> 325000
B12: Aggregate Deductible | F12: 500000
I13: Premium = [(Expected Ultimate Loss - Expected Ultimate Loss limited by occurrence and aggregate) + (Expected Ultimate Loss)*LAE% + fixed expense]*(Tax multiplier)
B14: The following apply to both plans: | I14: =((F15-F17) +F15*F21+F19)*F22 -> 268830
B15: Expected Ultimate Losses | F15: 450000
B16: Expected Ultimate Losses limited by occurrence | F16: 350000 | I16: Cost = | J16: =I11+I14 -> 593830
B17: Expected Ultimate Losses limited by occurrence and aggregate | F17: 325000
I18: The expected total cost of the paid loss deductible is lower than the incurred loss retro plan.
B19: Fixed underwriting expenses including commission & profit | F19: 100000
H20: (b) | I20: Recommend the paid loss deductible plan because:
B21: LAE as a percentage of Loss | F21: 0.08 | I21: The total cost is lower than that of the incurred loss retro plan in part due to not paying taxes on the deductible payments.
B22: Tax Multiplier | F22: 1.03 | I22: There is a cash flow benefit to the insured because they do not have to pay their deductible until the loss is paid and the insurer seeks reimbursement.
I23: They could generate investment income from the delayed payments.
A24: (a) | B24: Compare the expected total cost of insurance of the two plans, taking into account both premium
A25: =INDEX('Point Grid'!$C$8:$I$26,MATCH($A$1,'Point Grid'!$A$8:$A$26,0),MATCH(A24,'Point Grid'!$C$7:$I$7,0)) -> 1.5 | B25: and deductible payments, from the perspective of the insured. | H25: (c) | I25: Increase the per-occurrence deductible. This would lower the premium paid and increase the cash flow advantage for the insured.
A26: 1.5 | I26: Change from a paid loss deductible plan to an excess loss with self-insured retention.
I27: The insured handles all claims below the deductible, saving on expense handling.
A28: (b) | B28: Recommend and briefly justify one of the two plans above from the perspective of the insured.
A29: =INDEX('Point Grid'!$C$8:$I$26,MATCH($A$1,'Point Grid'!$A$8:$A$26,0),MATCH(A28,'Point Grid'!$C$7:$I$7,0)) -> 0.5
A30: 0.5
A32: (c) | B32: Propose two changes to the recommended plan in part (b) above and briefly explain why each
A33: =INDEX('Point Grid'!$C$8:$I$26,MATCH($A$1,'Point Grid'!$A$8:$A$26,0),MATCH(A32,'Point Grid'!$C$7:$I$7,0)) -> 1 | B33: would be beneficial for the insured.
A34: 1

Sheet 13
A1: 13 | B1: Finished | G1: Navigator | I1: Solution
H2: (a) | I2: P(X > 10,000) = 1 - F(10,000) | N2: =(6000/(10000+6000))^2 -> 0.140625
A3: Points | B3: An insurance company observes the following ground-up claim experience for a book of business:
A4: =INDEX('Point Grid'!B:B,MATCH('13'!A1,'Point Grid'!A:A,0)) -> 2.75 | B4: • Claim counts (N) follow a Poisson distribution with λ = 5,000 | I4: E[N > $10,000] = E[N] * P(X > 10,000) = | M4: =5000*N2 -> 703.125 | N4: claims in excess of $10,000.
B5: • Claim size (X) follows a Pareto distribution with α = 2 and β = 6,000 | I5: Using N has a Poisson distribution with mean 5,000.
B7: The insurance company pays claims in excess of $10,000. | H7: (b) | I7: Initial expected excess loss, E[S] = E[N] * (E[X] - E[X; 10,000])
I8: E[X] = | J8: =6000/(2-1) -> 6000
B9: Given the following: | I9: E[X; 10,000] = | K9: =(6000/(2-1))*(1-(6000/(10000+6000))^(2-1)) -> 3750
B10: • For a Poisson distribution:
I11: E[S] = | J11: =M4*(J8-K9) -> 1582031.25
B12: • For a Pareto distribution:
I13: Let Y = (1 + 3%) * X
I14: E[T] = E[N'] * (E[Y] - E[Y; 10,000])
I15: where E[N'] is the new expected number of claims over $10,000.
I17: E[Y] - E[Y; 10,000] = 1.03*(E[X] - E[X; 10,000/1.03])
I18: E[X; 10,000/1.03] = | K18: =(6000/(2-1))*(1-(6000/(10000/1.03+6000))^(2-1)) -> 3708.281829
A19: (a) | B19: Calculate the expected number of claims in excess of $10,000.
A20: =INDEX('Point Grid'!$C$8:$I$26,MATCH($A$1,'Point Grid'!$A$8:$A$26,0),MATCH(A19,'Point Grid'!$C$7:$I$7,0)) -> 0.75 | I20: E[Y] = | J20: =1.03*(J8-K18) -> 2360.469716
A21: 0.75 | I21: Want no change, i.e. E[T] = E[S]
I22: This means E[N'] = E[S] / E[Y] = | L22: =J11/J20 -> 670.2188295
A23: (b) | B23: Assume claim size is subject to a uniform annual inflation rate of 3%.
A24: =INDEX('Point Grid'!$C$8:$I$26,MATCH($A$1,'Point Grid'!$A$8:$A$26,0),MATCH(A23,'Point Grid'!$C$7:$I$7,0)) -> 2 | B24: Calculate the rate at which ground-up claims must change in order for there to be no change in | I24: Rate of change = E[N'] / E[N] -1 = | L24: =L22/M4 -1 -> -0.04679988689
A25: 2 | B25: expected annual total aggregate excess losses.

Sheet 14
A1: 14 | B1: Finished | G1: Navigator | I1: Solution
H2: (a) | I2: R = (B + c(E - I))*T
A3: Points | B3: The balanced plan provision for a workers' compensation risk in the state of Alabama are given below: | I3: B is the basic premium, c is the loss conversion factor, E is the expected loss,
A4: =INDEX('Point Grid'!B:B,MATCH('14'!A1,'Point Grid'!A:A,0)) -> 3 | B4: Standard Premium | D4: 9000000 | I4: I is the net insurance charge and T is the tax multiplier.
B5: Minimum Entry Ratio, rH | D5: 0.28
B6: Maximum Entry Ratio, rG | D6: 2.55 | I6: E = Adjusted Expected Loss / State Hazard Group Differential
B7: ϕ(rG) | D7: 0.0379 | I7: E = | J7: =D12/D11 -> 5400000
B8: ϕ(rH) | D8: 0.7253
B9: Loss Conversion Factor | D9: 1.3 | I9: I = [ϕ(rG) - ψ(rH)] * E
B10: Tax Multiplier | D10: 1.05 | I10: ψ(rH) = ϕ(rH) + r - 1 = | K10: =D8+D5-1 -> 0.0053
B11: State Hazard Group Differential | D11: 0.9
B12: Adjusted Expected Loss | D12: 4860000 | I12: I = | J12: =(D7-K10)*J7 -> 176040
B14: • Using the 2008 NCCI table of expected loss range, the expected retrospective premium = $9,493,205. | I14: R = | J14: 9493205
B15: • There is no per-occurrence loss limit. | I15: Solve for B
I16: B = | J16: =(J14/D10)-D9*(J7-J12) -> 2249999.619
A17: (a) | B17: Calculate the basic premium ratio to standard premium.
A18: =INDEX('Point Grid'!$C$8:$I$26,MATCH($A$1,'Point Grid'!$A$8:$A$26,0),MATCH(A17,'Point Grid'!$C$7:$I$7,0)) -> 1.25 | I18: Ratio of basic premium to standard premium is | N18: =J16/D4 -> 0.2499999577
A19: 1.25
H20: (b) | I20: Current Net Insurance Charge | L20: =J12 -> 176040
A21: (b) | B21: The insured believes that the insurance charge embedded in the current basic premium is unfair and
A22: =INDEX('Point Grid'!$C$8:$I$26,MATCH($A$1,'Point Grid'!$A$8:$A$26,0),MATCH(A21,'Point Grid'!$C$7:$I$7,0)) -> 1.25 | B22: cites the following five years of loss experience the insured had with a prior carrier: | I22: Convert the given table of loss ratios to a table of entry ratios.
A23: 1.25 | C23: Year | D23: Loss Ratio | I23: Year | J23: Loss Ratio | K23: Entry Ratio
C24: 1 | D24: 0.4 | I24: 1 | J24: =D24 -> 0.4 | K24: =J24/$J$29 -> 0.6666666667
C25: 2 | D25: 1.65 | I25: 2 | J25: =D25 -> 1.65 | K25: =J25/$J$29 -> 2.75
C26: 3 | D26: 0.15 | I26: 3 | J26: 0.15 | K26: 0.25
C27: 4 | D27: 0.55 | I27: 4 | J27: 0.55 | K27: 0.9166666667
C28: 5 | D28: 0.25 | I28: 5 | J28: 0.25 | K28: 0.4166666667
I29: Average | J29: =AVERAGE(J24:J28) -> 0.6 | K29: 1
B30: The insured's exposure base has remained stable over time.
B31: Compare the net insurance charge in the current basic premium for this policy to the net insurance | I31: Estimated insurance charge = sum( max{ 0, entry ratio - rG})/ Years
B32: charge based on the prior loss experience using the plan provisions given above. | I32: =(MAX(0,K25-$D$6)+MAX(0,K26-$D$6)+MAX(0,K27-$D$6)+MAX(0,K28-$D$6)+MAX(0,K24-$D$6))/5 -> 0.04
I33: Estimated insurance savings = sum( max{0, rH - entry ratio})/Years
A34: (c) | B34: Discuss the appropriateness of using a basic premium derived from the prior loss experience. | I34: =(MAX(0,$D$5-K25)+MAX(0,$D$5-K26)+MAX(0,$D$5-K27)+MAX(0,$D$5-K28)+MAX(0,$D$5-K24))/5 -> 0.006
A35: =INDEX('Point Grid'!$C$8:$I$26,MATCH($A$1,'Point Grid'!$A$8:$A$26,0),MATCH(A34,'Point Grid'!$C$7:$I$7,0)) -> 0.5 | I35: Estimated net insurance charge = | L35: =J7*(I32-I34) -> 183600
A36: 0.5
I37: Using the data provided by the insured produces a net insurance charge that is slightly
I38: higher than the one produced by the insurer.
H40: (c) | I40: It isn't appropriate to use prior loss experience with another carrier to determine the net insurance charge because
I41: the prior carrier likely had a different mix of business so the aggregate distributions would not be the same.
I42: The prior carrier may also have used different minimum and maximum entry ratios as a result of the aggregate
I43: distribution being different.

Sheet 15
A1: 15 | B1: Finished | G1: Navigator | J1: Solution
I2: (a) | J2: Expected loss ratio before loss corridor | N2: =SUMPRODUCT(C16:C19,D16:D19) -> 0.67777
A3: Points | B3: A reinsurer has priced a quota share treaty to achieve an expected combined ratio of 90%.
A4: =INDEX('Point Grid'!B:B,MATCH('15'!A1,'Point Grid'!A:A,0)) -> 1.75 | B4: Expenses for the treaty are as follows: | J4: Combined Ratio = loss ratio + ceding commission + fees + expenses
J5: Therefore, loss ratio (with loss corridor) = | N5: =90%-C6-C7-C8-C9 -> 0.63
B6: Ceding Commission | C6: 0.2 | J6: This is the reinsurer's loss ratio with the loss corridor
B7: Brokerage Fees | C7: 0.05
B8: Administrative Expenses | C8: 0.01 | J8: Let x% be the percent reassumed by the primary insurer.
B9: Unallocated Expenses | C9: 0.01 | J9: So 63% = 37.3%*0.03 + 53.2%*0.21 + (60% +(66.1%-60%)*(1-x%))*0.55 + (60% + (80% - 60%)*(1-x%) + (91.1%- 80%))*0.21
B11: The following table represents the expected loss ratio distribution for the primary insurer | J11: Solving for x yields
B12: under the treaty: | J12: =1-(63% - 37.3%*0.03 - 53.2%*0.21 - 60%*0.55 - 60%*0.21 - (91.1%-80%)*0.21)/((66.1% - 60%)*0.55 + (80% -60%)*0.21) -> 0.6322964924
B13: Range of Loss Ratios | C13: Average | D13: Probability
C14: Ratio | D14: of being
C15: in Range | D15: in Range
B16: 0 – 40% | C16: 0.373 | D16: 0.03
B17: 40 – 60% | C17: 0.532 | D17: 0.21
B18: 60 – 80% | C18: 0.661 | D18: 0.55
B19: 80% or above | C19: 0.911 | D19: 0.21
B21: The treaty includes a loss corridor from 60% to 80% loss ratio.
A23: (a) | B23: Calculate the percent of loss reassumed by the primary insurer in the loss corridor.
A24: =INDEX('Point Grid'!$C$8:$I$26,MATCH($A$1,'Point Grid'!$A$8:$A$26,0),MATCH(A23,'Point Grid'!$C$7:$I$7,0)) -> 1.75
A25: 1.75

Sheet 16
A1: 16 | B1: Finished | F1: Navigator | I1: Solution
H2: (a) | I2: Use linear interpolation between the exceedance probabilities for the 200 and 500 year return periods.
A3: Points | B3: A reinsurance company is evaluating whether or not to write a $50 million excess of
A4: =INDEX('Point Grid'!B:B,MATCH('16'!A1,'Point Grid'!A:A,0)) -> 1.75 | B4: $50 million catastrophe reinsurance contract with a primary insurer. The reinsurer is | I4: The primary insurer keeps the first $50million of catastrophe losses and any excess over the layer [50m, 100m]
B5: currently holding $850 million of capital and is required to hold enough capital to survive | I5: ($000,000)
B6: a 1-in-250 event. Without the new contract, the reinsurance company has a 1-in-250 | I6: Return | J6: Exceedance | K6: Gross | L6: Ceded | M6: Net
B7: probable maximum loss (PML) of $825 million which is solely driven by the | I7: Period | J7: Probability | K7: PML | L7: PML | M7: PML
B8: hurricane peril. | I8: 500 | J8: =1/I8 -> 0.002 | K8: =C16 -> 105 | L8: 50 | M8: =K8-L8 -> 55
I9: 200 | J9: =1/I9 -> 0.005 | K9: =C17 -> 95 | L9: 50 | M9: =K9-L9 -> 45
B10: Given the following:
B11: • The primary insurer's PMLs are driven by the hurricane and earthquake perils only. | I11: 1-in-250 return period has an exceedance probability of
B12: • The primary insurer's aggregate annual PMLs by return period are as follows: | I12: =1/250 -> 0.004
B14: Return Period (years) | C14: PML ($000,000) | I14: Ceded PML = | K14: =L8*(J9-I12)/(J9-J8)+L9*(I12-J8)/(J9-J8) -> 50
B15: 1000 | C15: 125
B16: 500 | C16: 105 | I16: Net PML = | K16: =M8*(J9-I12)/(J9-J8)+M9*(I12-J8)/(J9-J8) -> 48.33333333
B17: 200 | C17: 95
B18: 100 | C18: 70 | H18: (b) | I18: We cannot add PMLs. The reinsurer has $850-$825 = $25million in available capital.
B19: 50 | C19: 50 | I19: The primary exposure is driven by both hurricane and earthquake perils, of which the largest
B20: 25 | C20: 30 | I20: hurricane exposure is below the retention. So it would take more than 1 hurricane event.
B21: 20 | C21: 25 | I21: Further, hurricanes and earthquakes are assumed to be independent events so unlikely
B22: 10 | C22: 20 | I22: to have multiples of each event type in the return periods considered.
B23: 5 | C23: 15 | I23: The reinsurer should accept the treaty as it offers diversification benefits.
B25: • The largest hurricane event in the primary insurer's event catalog is $45,000,000. | I25: Note: The question was not clear if this was an aggregate catastrophe treaty, or a per-occurrence
I26: treaty. If each catastrophe could exposure a new $50m - $100m layer then we have
A27: (a) | B27: Calculate the ceded, and net, 1-in-250 PMLs for this contract for the primary insurer. | I27: insufficient information to conclude whether the reinsurer has sufficient capital to accept the treaty.
A28: =INDEX('Point Grid'!$C$8:$I$26,MATCH($A$1,'Point Grid'!$A$8:$A$26,0),MATCH(A27,'Point Grid'!$C$7:$I$7,0)) -> 1
A29: 1
A31: (b) | B31: Evaluate whether the reinsurer should participate in this treaty.
A32: =INDEX('Point Grid'!$C$8:$I$26,MATCH($A$1,'Point Grid'!$A$8:$A$26,0),MATCH(A31,'Point Grid'!$C$7:$I$7,0)) -> 0.75
A33: 0.75

Sheet 17
A1: 17 | B1: Finished | F1: Navigator | I1: Solution
H2: (a) | I2: The Vulnerability module needs to be modified because it quantifies the physical damage to exposed properties.
A3: Points | B3: A catastrophe modeler would like to incorporate a new construction technique into a | I3: The Inventory module needs to be updated because it describes the property exposures.
A4: =INDEX('Point Grid'!B:B,MATCH('17'!A1,'Point Grid'!A:A,0)) -> 2 | B4: catastrophe model. This new technique would theoretically reduce the amount of building
B5: damage sustained during hurricane force winds. However, experts have not reached a | H5: (b) | I5: The uncertainty due to the new construction technique is epistemic.
B6: consensus on the effectiveness of the new construction technique because it has not been | I6: This is because we may not know enough about the technique and there is no historical
B7: exposed to an actual hurricane. | I7: data available. This causes the uncertainty rather than inherent randomness in the process.
A9: (a) | B9: Briefly describe which module(s) of the catastrophe model would need to be modified to | H9: (c) | I9: Use simulation techniques to recreate the randomness of catastrophe events. This
A10: =INDEX('Point Grid'!$C$8:$I$26,MATCH($A$1,'Point Grid'!$A$8:$A$26,0),MATCH(A9,'Point Grid'!$C$7:$I$7,0)) -> 0.5 | B10: account for the new information. | I10: addresses aleatory uncertainty. However, simulations require more assumptions, data and
A11: 0.5 | I11: can be hard to calculate and explain the outcome.
A13: (b) | B13: Classify the uncertainty created with the new construction technique as either aleatory or | I13: Could use a logic tree to assign different weights (probabilities) to parameters. This
A14: =INDEX('Point Grid'!$C$8:$I$26,MATCH($A$1,'Point Grid'!$A$8:$A$26,0),MATCH(A13,'Point Grid'!$C$7:$I$7,0)) -> 0.5 | B14: epistemic and briefly justify the selection. | I14: addresses epistemic uncertainty. It can be hard to update as it relies on expert opinions
A15: 0.5 | I15: which may change/not be consistent over time. Logic trees are easier to explain though.
A17: (c) | B17: Briefly describe and contrast two methods the modeler could use to incorporate uncertainty
A18: =INDEX('Point Grid'!$C$8:$I$26,MATCH($A$1,'Point Grid'!$A$8:$A$26,0),MATCH(A17,'Point Grid'!$C$7:$I$7,0)) -> 1 | B18: in this catastrophe model.
A19: 1
